Workbook

Sheet Sheet1
A1: 2024年第一季度公共就业服务机构市场职业供求状况分析
A3: 项 目 | B3: 代码 | C3: 需求人数 | D3: 求职人数 | E3: 求人倍率
A4: 甲 | B4: 乙 | C4: 1 | D4: 2 | E4: 3
A5: 本期有效数 | B5: 1 | C5: =C11 -> 42988 | D5: =E74 -> 39735 | E5: =IFERROR(C5/D5,0) -> 1.08
A7: 续表一
A8: 项 目 | B8: 代码 | C8: 按产业分组的需求人数
C9: 需求人数 | D9: 所占比重（%）
A10: 甲 | B10: 乙 | C10: 4 | D10: 5
A11: 合计 | B11: 2 | C11: =C12+C13+C14 -> 42988 | D11: =SUM(D12:D14) -> 100.00%
A12: 第一产业 | B12: 3 | C12: =C21-C22 -> 13 | D12: =IFERROR(C12/$C$11,0) -> 0.03%
A13: 第二产业 | B13: 4 | C13: =C23-C24+C25-C26+C27+C28 -> 9571 | D13: 22.26%
A14: 第三产业 | B14: 5 | C14: =C22+C24+C26+C29+C30+C31+C32+C33+C34+C35+C36+C37+C38+C39+C40+C41+C42+C43 -> 33404 | D14: 77.71%
A16: 续表二
A17: 项 目 | B17: 代码 | C17: 按行业分组的需求人数
C18: 需求人数 | D18: 所占比重（%）
A19: 甲 | B19: 乙 | C19: 6 | D19: 7
A20: 合计 | B20: 6 | C20: =SUM(C21:C43)-C22-C24-C26 -> 42988 | D20: =SUM(D21:D43)-D26-D24-D22 -> 100.00%
A21: 农、林、牧、渔业 | B21: 7 | C21: 13 | D21: =IFERROR(C21/$C$11,0) -> 0.03%
A22: 其中，农、林、牧、渔专业及辅助性活动 | B22: 8 | C22: 0 | D22: 0.00%
A23: 采矿业 | B23: 9 | C23: 0 | D23: 0.00%
A24: 其中，开采专业及辅助性活动 | B24: 10 | C24: 0 | D24: 0.00%
A25: 制造业 | B25: 11 | C25: 23988 | D25: 55.80%
A26: 其中，金属制品、机械和设备修理业 | B26: 12 | C26: 15564 | D26: 36.21%
A27: 电力、热力、燃气及水生产和供应业 | B27: 13 | C27: 769 | D27: 1.79%
A28: 建筑业 | B28: 14 | C28: 378 | D28: 0.88%
A29: 批发和零售业 | B29: 15 | C29: 670 | D29: 1.56%
A30: 交通运输、仓储和邮政业 | B30: 16 | C30: 415 | D30: 0.97%
A31: 住宿和餐饮业 | B31: 17 | C31: 11143 | D31: 25.92%
A32: 信息传输、软件和信息技术服务业 | B32: 18 | C32: 2278 | D32: 5.30%
A33: 金融业 | B33: 19 | C33: 275 | D33: 0.64%
A34: 房地产业 | B34: 20 | C34: 1401 | D34: 3.26%
A35: 租赁和商务服务业 | B35: 21 | C35: 292 | D35: 0.68%
A36: 科学研究和技术服务业 | B36: 22 | C36: 0 | D36: 0.00%
A37: 水利、环境和公共设施管理业 | B37: 23 | C37: 0 | D37: 0.00%
A38: 居民服务、修理和其他服务业 | B38: 24 | C38: 739 | D38: 1.72%
A39: 教育 | B39: 25 | C39: 348 | D39: 0.81%
A40: 卫生和社会工作 | B40: 26 | C40: 0 | D40: 0.00%
A41: 文化、体育和娱乐业 | B41: 27 | C41: 279 | D41: 0.65%
A42: 公共管理、社会保障和社会组织 | B42: 28 | C42: 0 | D42: 0.00%
A43: 国际组织 | B43: 29 | C43: 0 | D43: 0.00%
A48: 续表三
A49: 项 目 | B49: 代码 | C49: 按用人单位性质分组的需求人数
C50: 需求人数 | D50: 所占比重（%）
A51: 甲 | B51: 乙 | C51: 8 | D51: 9
A52: 合 计 | B52: 30 | C52: =C53+C66+C67+C68 -> 42988 | D52: =D53+D66+D67+D68 -> 100.00%
A53: 企 业 | B53: 31 | C53: =C54+C63+C64+C65 -> 42988 | D53: =IFERROR(C53/$C$11,0) -> 100.00%
A54: 内资企业 | B54: 32 | C54: =C55+C56+C57+C58+C59+C60+C61+C62 -> 29650 | D54: 68.97%
A55: 国有企业 | B55: 33 | C55: 90 | D55: 0.21%
A56: 集体企业 | B56: 34 | C56: 0 | D56: 0.00%
A57: 股份合作企业 | B57: 35 | C57: 112 | D57: 0.26%
A58: 联营企业 | B58: 36 | C58: 56 | D58: 0.13%
A59: 有限责任公司 | B59: 37 | C59: 19067 | D59: 44.35%
A60: 股份有限公司 | B60: 38 | C60: 3495 | D60: 8.13%
A61: 私营企业 | B61: 39 | C61: 6676 | D61: 15.53%
A62: 其他企业 | B62: 40 | C62: 154 | D62: 0.36%
A63: 港、澳、台商投资企业 | B63: 41 | C63: 636 | D63: 1.48%
A64: 外商投资企业 | B64: 42 | C64: 171 | D64: 0.40%
A65: 个体经营 | B65: 43 | C65: 12531 | D65: 29.15%
A66: 事 业 | B66: 44 | C66: 0 | D66: 0.00%
A67: 机 关 | B67: 45 | C67: 0 | D67: 0.00%
A68: 其 他 | B68: 46 | C68: 0 | D68: 0.00%
A70: 续表四
A71: 项 目 | B71: 代码 | C71: 按职业分组的供求人数（职业大类）
C72: 需求人数 | D72: 所占比重（%） | E72: 求职人数 | F72: 所占比重（%） | G72: 求人倍率
A73: 甲 | B73: 乙 | C73: 10 | D73: 11 | E73: 12 | F73: 13 | G73: 14
A74: 合计 | B74: 47 | C74: =SUM(C75:C81) -> 42988 | D74: =SUM(D75:D81) -> 100.00% | E74: =SUM(E75:E82) -> 39735 | F74: =SUM(F75:F82) -> 100.00% | G74: =IFERROR(C74/E74,0) -> 1.08
A75: 单位负责人 | B75: 48 | C75: 94 | D75: =IFERROR(C75/$C$11,0) -> 0.22% | E75: 111 | F75: =IFERROR(E75/$E$74,0) -> 0.28% | G75: =IFERROR(C75/(E75+$E$82*F75),0) -> 0.85
A76: 专业技术人员 | B76: 49 | C76: 3856 | D76: 8.97% | E76: 4065 | F76: 10.23% | G76: 0.95
A77: 办事人员和有关人员 | B77: 50 | C77: 10638 | D77: 24.75% | E77: 12343 | F77: 31.06% | G77: 0.86
A78: 社会生产服务和生活服务人员 | B78: 51 | C78: 10183 | D78: 23.69% | E78: 9222 | F78: 23.21% | G78: 1.10
A79: 农林牧渔业生产及辅助人员 | B79: 52 | C79: 8 | D79: 0.02% | E79: 16 | F79: 0.04% | G79: 0.50
A80: 生产制造及有关人员 | B80: 53 | C80: 9754 | D80: 22.69% | E80: 8002 | F80: 20.14% | G80: 1.22
A81: 其他 | B81: 54 | C81: 8455 | D81: 19.67% | E81: 5976 | F81: 15.04% | G81: 1.41
A82: 无要求 | B82: 55 | C82: - | D82: - | F82: 0.00% | G82: -
A84: 续表五
A85: 项 目 | B85: 代码 | C85: 职业代码 | D85: 需求大于求职缺口最大的前二十个职业（职业细类）
D86: 需求人数 | E86: 求职人数 | F86: 缺口数 | G86: 求人倍率
A87: 甲 | B87: 乙 | C87: 15 | D87: 16 | E87: 17 | F87: 18 | G87: 19
A88: 普工 | B88: 56 | C88: 6279800 | D88: 11994 | E88: 5997 | F88: =D88-E88 -> 5997 | G88: =IFERROR(D88/E88,0) -> 2.00
A89: 业务员 | B89: 57 | C89: 4010299 | D89: 2659 | E89: 1329 | F89: 1330 | G89: 2.00
A90: 营业员 | B90: 58 | C90: 4010100 | D90: 335 | E90: 167 | F90: 168 | G90: 2.01
A91: 质检员 | B91: 59 | C91: 6262100 | D91: 306 | E91: 153 | F91: 153 | G91: 2.00
A92: 仓管员 | B92: 60 | C92: 4020199 | D92: 295 | E92: 147 | F92: 148 | G92: 2.01
B93: 61 | F93: 0 | G93: 0.00
B94: 62 | F94: 0 | G94: 0.00
B95: 63 | F95: 0 | G95: 0.00
B96: 64 | F96: 0 | G96: 0.00
B97: 65 | F97: 0 | G97: 0.00
B98: 66 | F98: 0 | G98: 0.00
B99: 67 | F99: 0 | G99: 0.00
B100: 68 | F100: 0 | G100: 0.00
B101: 69 | F101: 0 | G101: 0.00
B102: 70 | F102: 0 | G102: 0.00
B103: 71 | F103: 0 | G103: 0.00
B104: 72 | F104: 0 | G104: 0.00
B105: 73 | F105: 0 | G105: 0.00
B106: 74 | F106: 0 | G106: 0.00
B107: 75 | F107: 0 | G107: 0.00
A109: 续表六
A110: 项 目 | B110: 代码 | C110: 职业代码 | D110: 需求小于求职缺口最大的前二十个职业（职业细类）
D111: 需求人数 | E111: 求职人数 | F111: 缺口数 | G111: 求人倍率
A112: 甲 | B112: 乙 | C112: 20 | D112: 21 | E112: 22 | F112: 23 | G112: 24
A113: 文 员 | B113: 76 | C113: 3010200 | D113: 1519 | E113: 3039 | F113: =D113-E113 -> -1520 | G113: =IFERROR(D113/E113,0) -> 0.50
A114: 会计 | B114: 77 | C114: 2060300 | D114: 1928 | E114: 3856 | F114: -1928 | G114: 0.50
A115: 驾驶员 | B115: 78 | C115: 6240100 | D115: 487 | E115: 975 | F115: -488 | G115: 0.50
A116: 跟单员 | B116: 79 | C116: 3010199 | D116: 429 | E116: 858 | F116: -429 | G116: 0.50
A117: 电工 | B117: 80 | C117: 6240100 | D117: 401 | E117: 802 | F117: -401 | G117: 0.50
B118: 81 | F118: 0 | G118: 0.00
B119: 82 | F119: 0 | G119: 0.00
B120: 83 | F120: 0 | G120: 0.00
B121: 84 | F121: 0 | G121: 0.00
B122: 85 | F122: 0 | G122: 0.00
B123: 86 | F123: 0 | G123: 0.00
B124: 87 | F124: 0 | G124: 0.00
B125: 88 | F125: 0 | G125: 0.00
B126: 89 | F126: 0 | G126: 0.00
B127: 90 | F127: 0 | G127: 0.00
B128: 91 | F128: 0 | G128: 0.00
B129: 92 | F129: 0 | G129: 0.00
B130: 93 | F130: 0 | G130: 0.00
B131: 94 | F131: 0 | G131: 0.00
B132: 95 | F132: 0 | G132: 0.00
A134: 续表七
A135: 项 目 | B135: 代码 | C135: 按求职人员类别分组的求职人数
C136: 求职人数 | D136: 所占比重（%）
A137: 甲 | B137: 乙 | C137: 25 | D137: 26
A138: 合计 | B138: 96 | C138: =SUM(C139:C146)-C140 -> 39735 | D138: =SUM(D139:D146)-D140 -> 100.00%
A139: 新成长失业青年 | B139: 97 | C139: 5950 | D139: =IFERROR(C139/$C$138,0) -> 14.97%
A140: 其中：应届高校毕业生 | B140: 98 | C140: 806 | D140: 2.03%
A141: 失业人员 | B141: 99 | C141: 3580 | D141: 9.01%
A142: 在业人员 | B142: 100 | C142: 4819 | D142: 12.13%
A143: 退休人员 | B143: 101 | C143: 397 | D143: 1.00%
A144: 在学人员 | B144: 102 | C144: 5602 | D144: 14.10%
A145: 本市农村求职人员 | B145: 103 | C145: 19300 | D145: 48.57%
A146: 外地户籍求职人员 | B146: 104 | C146: 87 | D146: 0.22%
A153: 续表八
A154: 项 目 | B154: 代码 | C154: 劳动力供求人数比较（按性别分组）
C155: 需求人数 | D155: 所占比重（%） | E155: 求职人数 | F155: 所占比重（%） | G155: 求人倍率
A156: 甲 | B156: 乙 | C156: 27 | D156: 28 | E156: 29 | F156: 30 | G156: 31
A157: 合计 | B157: 105 | C157: -- | D157: -- | E157: =SUM(E158:E159) -> 39735 | F157: =SUM(F158:F159) -> 100.00% | G157: --
A158: 男 | B158: 106 | C158: -- | D158: -- | E158: 22843 | F158: =IFERROR(E158/$E$157,0) -> 57.49% | G158: --
A159: 女 | B159: 107 | C159: -- | D159: -- | E159: 16892 | F159: =IFERROR(E159/$E$157,0) -> 42.51% | G159: --
A160: 无要求 | B160: 108 | C160: -- | D160: -- | E160: -- | F160: -- | G160: --
A162: 续表九
A163: 项 目 | B163: 代码 | C163: 劳动力供求人数比较（按年龄分组）
C164: 需求人数 | D164: 需求比重（%） | E164: 求职人数 | F164: 求职比重（%） | G164: 求人倍率
A165: 甲 | B165: 乙 | C165: 32 | D165: 33 | E165: 34 | F165: 35 | G165: 36
A166: 合计 | B166: 109 | C166: =SUM(C167:C171) -> 42988 | D166: =SUM(D167:D171) -> 100.00% | E166: =SUM(E167:E170) -> 39735 | F166: =SUM(F167:F170) -> 100.00% | G166: =IF(E166=0,0,C166/E166) -> 1.08
A167: 16-24岁 | B167: 110 | C167: 13322 | D167: =IFERROR(C167/$C$190,0) -> 30.99% | E167: 15993 | F167: =IFERROR(E167/$E$166,0) -> 40.25% | G167: =IFERROR((C167+$C$171*F167)/E167,0) -> 1.00
A168: 25-34岁 | B168: 111 | C168: 11603 | D168: 26.99% | E168: 11109 | F168: 27.96% | G168: 1.21
A169: 35-44岁 | B169: 112 | C169: 6964 | D169: 16.20% | E169: 7148 | F169: 17.99% | G169: 1.14
A170: 45岁以上 | B170: 113 | C170: 4380 | D170: 10.19% | E170: 5485 | F170: 13.80% | G170: 0.97
A171: 无要求 | B171: 114 | C171: 6719 | D171: 15.63% | E171: -- | F171: -- | G171: --
A173: 续表十
A174: 项 目 | B174: 代码 | C174: 劳动力供求人数比较（按文化程度分组）
C175: 需求人数 | D175: 需求比重（%） | E175: 求职人数 | F175: 求职比重（%） | G175: 求人倍率
A176: 甲 | B176: 乙 | C176: 37 | D176: 38 | E176: 39 | F176: 40 | G176: 41
A177: 合计 | B177: 115 | C177: =SUM(C178:C184)-C180 -> 42988 | D177: =SUM(D178:D184)-D180 -> 100.00% | E177: =SUM(E178:E183)-E180 -> 39735 | F177: =SUM(F178:F183)-F180 -> 100.00% | G177: =IF(E177=0,0,C177/E177) -> 1.08
A178: 初中及以下 | B178: 116 | C178: 9161 | D178: =IFERROR(C178/$C$190,0) -> 21.31% | E178: 10259 | F178: =IFERROR(E178/$E$177,0) -> 25.82% | G178: =IFERROR((C178+$C$184*F178)/E178,0) -> 1.01
A179: 高中 | B179: 117 | C179: 14078 | D179: 32.75% | E179: 13760 | F179: 34.63% | G179: 1.14
A180: 其中：职高、技校、中专 | B180: 118 | C180: 10798 | D180: 25.12% | E180: 8038 | F180: 20.23% | G180: 1.46
A181: 大专 | B181: 119 | C181: 12266 | D181: 28.53% | E181: 13109 | F181: 32.99% | G181: 1.05
A182: 大学 | B182: 120 | C182: 2871 | D182: 6.68% | E182: 2595 | F182: 6.53% | G182: 1.22
A183: 硕士以上 | B183: 121 | C183: 21 | D183: 0.05% | E183: 12 | F183: 0.03% | G183: 1.87
A184: 无要求 | B184: 122 | C184: 4591 | D184: 10.68% | E184: -- | F184: -- | G184: --
A186: 续表十一
A187: 项 目 | B187: 代码 | C187: 劳动力供求人数比较（按技术等级分组）
C188: 需求人数 | D188: 需求比重（%） | E188: 求职人数 | F188: 求职比重（%） | G188: 求人倍率
A189: 甲 | B189: 乙 | C189: 42 | D189: 43 | E189: 44 | F189: 45 | G189: 46
A190: 合计 | B190: 123 | C190: =SUM(C191:C200) -> 42988 | D190: =SUM(D191:D200) -> 100.00% | E190: =SUM(E191:E199) -> 39735 | F190: =SUM(F191:F199) -> 100.00% | G190: =IF(E190=0,0,C190/E190) -> 1.08
A191: 职业资格五级(初级技能) | B191: 124 | C191: 3005 | D191: =IFERROR(C191/$C$190,0) -> 6.99% | E191: 2503 | F191: =IFERROR(E191/$E$177,0) -> 6.30% | G191: =IFERROR((C191+$C$200*F191)/E191,0) -> 2.08
A192: 职业资格四级(中级技能) | B192: 125 | C192: 1711 | D192: 3.98% | E192: 1161 | F192: 2.92% | G192: 2.35
A193: 职业资格三级(高级技能) | B193: 126 | C193: 38 | D193: 0.09% | E193: 27 | F193: 0.07% | G193: 2.28
A194: 职业资格二级(技师) | B194: 127 | C194: 21 | D194: 0.05% | E194: 8 | F194: 0.02% | G194: 3.50
A195: 职业资格一级(高级技师) | B195: 128 | C195: 34 | D195: 0.08% | E195: 15 | F195: 0.04% | G195: 3.14
A196: 初级职称 | B196: 129 | C196: 3224 | D196: 7.50% | E196: 2531 | F196: 6.37% | G196: 2.15
A197: 中级职称 | B197: 130 | C197: 81 | D197: 0.19% | E197: 63 | F197: 0.16% | G197: 2.16
A198: 高级职称 | B198: 131 | C198: 17 | D198: 0.04% | E198: 8 | F198: 0.02% | G198: 3.00
A199: 无技术等级或职称 | B199: 132 | C199: —— | D199: -- | E199: 33419 | F199: 84.10% | G199: --
A200: 无要求 | B200: 133 | C200: 34857 | D200: =IFERROR(C200/$C$190,0) -> 81.09% | E200: -- | F200: -- | G200: --

Sheet Sheet2

Sheet Sheet3
